bitfinex/quotes_BTCUSD_20250910
["timestamp","ask_amount","ask_price","bid_price","bid_amount"]
[1757483745603,0.69,111610.0,111600.0,0.17921146]
[1757483745787,0.35,111610.0,111600.0,0.56186958]
[1757483746002,0.84348,111610.0,111600.0,0.38807052]
[1757483747576,0.84348,111610.0,111600.0,0.35828052]
[1757483747956,0.84348,111610.0,111600.0,0.36228052]
[1757483748192,0.84448,111610.0,111600.0,0.36828052]
[1757483750330,0.84448,111610.0,111600.0,0.34006326]
[1757483753422,0.151,111610.0,111600.0,0.34006326]
[1757483753638,0.3042,111610.0,111600.0,0.34006326]
[1757483754042,0.001,111610.0,111600.0,0.54777105]
[1757483754217,0.001,111610.0,111600.0,0.72609763]
[1757483754811,0.001,111610.0,111600.0,0.90918102]
[1757483754812,1e-08,111610.0,111600.0,0.90918102]
[1757483755062,1e-08,111610.0,111600.0,1.14598102]
[1757483755294,0.49272513,111650.0,111620.0,0.18811223]
[1757483755575,0.4678618,111630.0,111620.0,0.18811223]
[1757483756023,0.50170147,111640.0,111630.0,0.17914976]
[1757483756024,0.2,111640.0,111630.0,0.17914976]
[1757483756227,0.2,111640.0,111630.0,0.3322411]
[1757483756453,0.2,111640.0,111630.0,0.33000156]
[1757483757529,0.2,111640.0,111630.0,0.30021156]
[1757483759854,0.30332,111650.0,111640.0,0.17914725]
[1757483760053,0.30332,111650.0,111640.0,0.29920839]
[1757483760259,0.30332,111650.0,111640.0,0.18441725]
[1757483763389,0.30332,111650.0,111640.0,0.18641725]
[1757483763756,0.30432,111650.0,111640.0,0.18641725]
[1757483764134,0.30639,111650.0,111640.0,0.18317725]
[1757483764545,0.4253718,111650.0,111640.0,0.18114725]
[1757483764762,0.33873,111650.0,111640.0,0.18114725]
[1757483764963,0.4545218,111650.0,111640.0,0.18114725]
[1757483766519,0.33873,111650.0,111640.0,0.18114725]
[1757483766758,0.4545218,111650.0,111640.0,0.18114725]
[1757483767392,0.33873,111650.0,111640.0,0.18114725]
[1757483767601,0.151,111650.0,111640.0,0.18317725]
[1757483767821,0.30603,111650.0,111640.0,0.18317725]
[1757483768852,0.30396,111650.0,111640.0,0.18317725]
[1757483769201,0.15392,111650.0,111640.0,0.41800085]
[1757483769397,0.15392,111650.0,111640.0,0.30220905]
[1757483771073,0.001,111650.0,111640.0,0.41800085]
[1757483771291,0.001,111650.0,111640.0,0.33665725]
[1757483771509,0.001,111650.0,111640.0,0.45244905]
[1757483771716,0.001,111650.0,111640.0,0.45550905]
[1757483773151,0.001,111650.0,111640.0,0.30202905]
[1757483777511,0.001,111650.0,111640.0,0.53787684]
[1757483778217,0.001,111650.0,111640.0,0.30629324]
[1757483778445,0.001,111650.0,111640.0,0.53787684]
[1757483778582,0.001,111650.0,111640.0,0.39394504]
[1757483779443,0.00034102,111650.0,111640.0,0.39361545]
[1757483781184,0.00034102,111650.0,111640.0,0.50940725]
[1757483783045,0.00034102,111650.0,111640.0,0.39361545]
[1757483784678,0.00034102,111650.0,111640.0,0.50940725]
[1757483786753,0.00034102,111650.0,111640.0,0.53453383]
[1757483787280,0.00034102,111650.0,111640.0,0.30295023]
[1757483787492,0.00034102,111650.0,111640.0,0.53453383]
[1757483792068,0.00034102,111650.0,111640.0,0.57158203]
[1757483794247,0.00569102,111650.0,111640.0,0.33357766]
[1757483794475,0.12148282,111650.0,111640.0,0.33357766]
[1757483794709,0.12148282,111650.0,111640.0,0.18081766]
[1757483797649,0.00569102,111650.0,111640.0,0.18081766]
[1757483798944,0.50137282,111650.0,111640.0,0.18081766]
[1757483799154,0.65405282,111650.0,111640.0,0.18081766]
[1757483799356,0.53826102,111650.0,111640.0,0.18081766]
[1757483799566,0.65405282,111650.0,111640.0,0.18081766]
[1757483800475,0.53826102,111650.0,111640.0,0.18081766]
[1757483800654,0.65405282,111650.0,111640.0,0.18081766]
[1757483801605,0.35250102,111650.0,111640.0,0.29869946]
[1757483801808,0.35034102,111650.0,111640.0,0.30165946]
[1757483802879,0.35250102,111650.0,111640.0,0.45421946]
[1757483803026,0.35034102,111650.0,111640.0,0.45421946]
[1757483805491,0.35250102,111650.0,111640.0,0.45421946]
[1757483806467,0.35034102,111650.0,111640.0,0.45421946]
[1757483807253,0.35034102,111650.0,111640.0,0.29869946]
[1757483807254,0.35250102,111650.0,111640.0,0.29869946]
[1757483807432,0.50494102,111650.0,111640.0,0.29869946]
[1757483809452,0.50494102,111650.0,111640.0,0.18290766]
[1757483809661,0.50494102,111650.0,111640.0,0.29869946]
[1757483811746,0.50795102,111650.0,111640.0,0.29869946]
[1757483812313,0.50795102,111650.0,111640.0,0.35646718]
[1757483812902,0.50795102,111650.0,111640.0,0.35437718]
[1757483815175,0.53793102,111650.0,111640.0,0.35437718]
[1757483815409,0.50250102,111650.0,111640.0,0.18586766]
[1757483815622,0.50250102,111650.0,111640.0,0.35942718]
[1757483816296,0.35034102,111650.0,111640.0,0.35942718]
[1757483816741,0.35258102,111650.0,111640.0,0.5329867]
[1757483817400,0.35258102,111650.0,111640.0,0.35942718]
[1757483817855,0.20034102,111650.0,111640.0,0.18586766]
[1757483818082,0.20034102,111650.0,111640.0,0.5329867]
[1757483818522,0.20034102,111650.0,111640.0,0.65002927]
[1757483818740,0.20034102,111650.0,111640.0,0.85185879]
[1757483818741,0.00034102,111650.0,111640.0,0.85185879]
[1757483818959,0.22189,111690.0,111670.0,0.17909913]
[1757483819265,0.79200868,111690.0,111680.0,0.35488114]
[1757483819478,0.57710868,111690.0,111680.0,0.35264261]
[1757483819690,0.7506682,111690.0,111680.0,0.17908309]
[1757483819895,0.7806482,111690.0,111680.0,0.17908309]
[1757483820925,0.60708868,111690.0,111680.0,0.18108309]
[1757483821522,0.7806482,111690.0,111680.0,0.18108309]
[1757483821715,0.60708868,111690.0,111680.0,0.18108309]
[1757483822025,0.57409868,111690.0,111680.0,0.18317309]
[1757483822238,0.57193868,111690.0,111680.0,0.18317309]
[1757483822457,0.7476582,111690.0,111680.0,0.18317309]
[1757483822628,0.7506682,111690.0,111680.0,0.18417309]
[1757483822848,0.7506682,111690.0,111680.0,0.18208309]
[1757483826589,0.95420772,111690.0,111680.0,0.18208309]
[1757483826998,1.13327478,111690.0,111680.0,0.18208309]
[1757483827790,1.13327478,111690.0,111680.0,0.18108309]
[1757483828357,1.13327478,111690.0,111680.0,0.17908309]
[1757483829969,1.13327478,111690.0,111680.0,0.18008309]
[1757483831479,0.95420772,111690.0,111680.0,0.18008309]
[1757483832108,0.80128772,111690.0,111680.0,0.18008309]
[1757483832457,0.95476772,111690.0,111680.0,0.18008309]
[1757483835576,0.35013868,111690.0,111680.0,0.18537309]
[1757483835827,0.00013868,111690.0,111680.0,0.6337386]
[1757483836047,0.00013868,111690.0,111680.0,0.51398225]
[1757483836273,0.1736982,111690.0,111680.0,0.48441225]
[1757483837204,0.37375952,111720.0,111710.0,0.179035]
[1757483837441,1.04318242,111720.0,111710.0,0.179035]
[1757483837680,1.04636242,111720.0,111710.0,0.179035]
[1757483837906,1.04636242,111720.0,111710.0,0.181085]
[1757483838868,1.04636242,111720.0,111710.0,0.183085]
[1757483839557,1.04636242,111720.0,111710.0,0.51346469]
[1757483839558,0.00066338,111720.0,111710.0,0.51346469]
[1757483840047,0.00066338,111720.0,111710.0,0.2196226]
[1757483840048,0.55308242,111720.0,111710.0,0.2196226]
[1757483840285,0.77194242,111720.0,111710.0,0.2206226]
[1757483840539,0.00066338,111720.0,111710.0,0.87075421]
[1757483840789,0.0002,111730.0,111720.0,0.20414555]
[1757483841034,0.00033893,111730.0,111720.0,0.67985005]
[1757483841282,0.00033893,111730.0,111720.0,0.71262005]
[1757483841524,0.00033893,111730.0,111720.0,0.71467005]
[1757483841735,0.00033893,111730.0,111720.0,0.7236691]
[1757483841981,0.00033893,111730.0,111720.0,0.71467005]
[1757483842439,0.00033893,111730.0,111720.0,0.37055101]
[1757483842665,0.17389845,111730.0,111720.0,0.33802101]
[1757483843353,0.17389845,111730.0,111720.0,0.34402101]
[1757483843354,0.00033893,111730.0,111720.0,0.34402101]
[1757483843796,0.00033893,111730.0,111720.0,0.33802101]
[1757483844027,0.00033893,111730.0,111720.0,0.33902101]
[1757483844242,0.17389845,111730.0,111720.0,0.33902101]
[1757483844519,0.00033893,111730.0,111720.0,0.33802101]
[1757483844782,0.00033893,111730.0,111720.0,0.33902101]
[1757483845234,0.00033893,111730.0,111720.0,0.34002101]
[1757483845441,0.00033893,111730.0,111720.0,0.33902101]
[1757483845644,0.00033893,111730.0,111720.0,0.34102101]
[1757483846508,0.34104669,111730.0,111720.0,0.18201897]
[1757483846918,0.33786669,111730.0,111720.0,0.18406897]
[1757483847682,0.48882669,111730.0,111720.0,0.18730897]
[1757483848382,0.33574669,111730.0,111720.0,0.18730897]
[1757483848570,0.48878669,111730.0,111720.0,0.18730897]
[1757483848922,0.52366669,111730.0,111720.0,0.22230713]
[1757483849934,0.48874669,111730.0,111720.0,0.22230713]
[1757483850133,0.49086669,111730.0,111720.0,0.22435713]
[1757483850323,0.49086669,111730.0,111720.0,0.22335713]
[1757483850522,0.49086669,111730.0,111720.0,0.22435713]
[1757483852724,0.49086669,111730.0,111720.0,0.22235713]
[1757483853123,0.34104669,111730.0,111720.0,0.22030713]
[1757483853542,0.49070669,111730.0,111720.0,0.22335713]
[1757483853749,0.48858669,111730.0,111720.0,0.22335713]
[1757483853953,0.48858669,111730.0,111720.0,0.22659713]
[1757483855304,0.52346669,111730.0,111720.0,0.22130713]
[1757483855516,0.23521893,111730.0,111720.0,0.22130713]
[1757483855718,0.48862669,111730.0,111720.0,0.22335713]
[1757483856262,0.20033893,111730.0,111720.0,0.22335713]
[1757483856472,0.20033893,111730.0,111720.0,0.45392088]
[1757483856678,0.00033893,111730.0,111720.0,0.45392088]
[1757483857179,0.00033893,111730.0,111720.0,0.31851312]
[1757483857397,0.15525893,111730.0,111720.0,0.31851312]
[1757483857630,0.15313893,111730.0,111720.0,0.31851312]
[1757483857835,0.28854669,111730.0,111720.0,0.31851312]
[1757483858905,0.13574669,111730.0,111720.0,0.31851312]
[1757483859332,0.15309893,111730.0,111720.0,0.31851312]
[1757483859882,0.15521893,111730.0,111720.0,0.31527312]
[1757483860075,0.29380669,111730.0,111720.0,0.31527312]
[1757483860275,0.28850669,111730.0,111720.0,0.31851312]
[1757483860681,0.15309893,111730.0,111720.0,0.31851312]
[1757483861716,0.15309893,111730.0,111720.0,0.31527312]
[1757483861936,0.14094669,111730.0,111720.0,0.22130713]
[1757483862141,0.29043669,111730.0,111720.0,0.22328713]
[1757483862472,0.13574669,111730.0,111720.0,0.22649713]
[1757483862678,0.28842669,111730.0,111720.0,0.22649713]
[1757483865200,0.13574669,111730.0,111720.0,0.22649713]
[1757483865406,0.28834669,111730.0,111720.0,0.22649713]
[1757483866423,0.32627916,111730.0,111720.0,0.22649713]
[1757483867083,0.17367916,111730.0,111720.0,0.22649713]
[1757483867301,0.32627916,111730.0,111720.0,0.22649713]
[1757483867882,0.15293893,111730.0,111720.0,0.22649713]
[1757483868208,0.32627916,111730.0,111720.0,0.22649713]
[1757483870247,0.15277893,111730.0,111720.0,0.39983736]
[1757483870670,0.15277893,111730.0,111720.0,0.22649713]
[1757483871284,0.32611916,111730.0,111720.0,0.22649713]
[1757483872657,0.15277893,111730.0,111720.0,0.22649713]
[1757483873447,0.00033893,111730.0,111720.0,0.22649713]
[1757483873654,0.00033893,111730.0,111720.0,0.3435397]
[1757483874096,0.00033893,111730.0,111720.0,0.45908617]
[1757483874318,0.00033893,111730.0,111720.0,0.57463264]
[1757483874539,0.00033893,111730.0,111720.0,0.60337264]
[1757483874724,0.00033893,111730.0,111720.0,0.6678853]
[1757483875410,0.00033893,111730.0,111720.0,0.6668853]
[1757483876375,0.30236,111760.0,111750.0,0.17897091]
[1757483876617,0.30433,111760.0,111750.0,0.21898248]
[1757483876826,0.37494212,111760.0,111750.0,0.21674535]
[1757483877245,0.30236,111760.0,111750.0,0.21995535]
[1757483877669,0.45171647,111760.0,111750.0,0.21476535]
[1757483877872,0.56726294,111760.0,111750.0,0.21476535]
[1757483878077,0.56726294,111760.0,111750.0,0.17897091]
[1757483878078,0.74621784,111760.0,111750.0,0.17897091]
[1757483878286,0.33617,111760.0,111750.0,0.17897091]
[1757483878513,0.56726294,111760.0,111750.0,0.17897091]
[1757483878728,0.56870294,111760.0,111750.0,0.17897091]
[1757483878953,0.56874924,111760.0,111750.0,0.17897091]
[1757483879164,0.56874924,111760.0,111750.0,0.21476535]
[1757483879874,0.56910924,111760.0,111750.0,0.21476535]
[1757483880330,0.45360277,111760.0,111750.0,0.21476535]
[1757483880633,0.1520163,111760.0,111750.0,0.21674535]
[1757483880832,0.42176277,111760.0,111750.0,0.21674535]
[1757483881175,0.42176277,111760.0,111750.0,0.21476535]
[1757483881388,0.42499277,111760.0,111750.0,0.21476535]
[1757483881582,0.42503277,111760.0,111750.0,0.21476535]
[1757483881784,0.42503277,111760.0,111750.0,0.21674535]
[1757483882423,0.42503277,111760.0,111750.0,0.21476535]
[1757483882622,0.54057924,111760.0,111750.0,0.21476535]
[1757483882819,0.42180277,111760.0,111750.0,0.21674535]
[1757483883761,0.53734924,111760.0,111750.0,0.21476535]
[1757483884004,0.42007277,111760.0,111750.0,0.21674535]
[1757483884222,0.42204277,111760.0,111750.0,0.21674535]
[1757483884433,0.42527277,111760.0,111750.0,0.21674535]
[1757483884646,0.42527277,111760.0,111750.0,0.21476535]
[1757483886057,0.27079277,111760.0,111750.0,0.21476535]
[1757483886264,0.42539277,111760.0,111750.0,0.21476535]
[1757483886485,0.54093924,111760.0,111750.0,0.21476535]
[1757483886655,0.56954924,111760.0,111750.0,0.21476535]
[1757483888376,0.41954924,111760.0,111750.0,0.21476535]
[1757483889246,0.56954924,111760.0,111750.0,0.21476535]
[1757483890860,0.27079277,111760.0,111750.0,0.21674535]
[1757483891097,4.63e-05,111760.0,111750.0,0.33550182]
[1757483891331,4.63e-05,111760.0,111750.0,0.63477439]
[1757483891718,4.63e-05,111760.0,111750.0,0.51922792]
[1757483891923,4.63e-05,111760.0,111750.0,0.63477439]
[1757483892292,4.63e-05,111760.0,111750.0,0.63577439]
[1757483893784,4.63e-05,111760.0,111750.0,0.63477439]
[1757483894212,4.63e-05,111760.0,111750.0,0.63677439]
[1757483894405,4.63e-05,111760.0,111750.0,0.63977439]
[1757483899518,4.63e-05,111760.0,111750.0,0.45754439]
[1757483899728,4.63e-05,111760.0,111750.0,0.61146439]
[1757483900090,4.63e-05,111760.0,111750.0,0.45754439]
[1757483900284,4.63e-05,111760.0,111750.0,0.49591792]
[1757483903821,4.63e-05,111760.0,111750.0,0.34199792]
[1757483903945,4.63e-05,111760.0,111750.0,0.49567792]
[1757483906686,4.63e-05,111760.0,111750.0,0.61122439]
[1757483908700,4.63e-05,111760.0,111750.0,0.62021799]
[1757483908929,4.63e-05,111760.0,111750.0,0.61122439]
[1757483911039,4.63e-05,111760.0,111750.0,0.49567792]
[1757483911213,4.63e-05,111760.0,111750.0,0.61122439]
[1757483911579,4.63e-05,111760.0,111750.0,0.49539792]
[1757483912393,4.63e-05,111760.0,111750.0,0.49218792]
[1757483912394,0.0020663,111760.0,111750.0,0.49218792]
[1757483912609,4.63e-05,111760.0,111750.0,0.49526792]
[1757483912991,4.63e-05,111760.0,111750.0,0.49522792]
[1757483913550,0.26479924,111760.0,111750.0,0.21976535]
[1757483913730,0.14925277,111760.0,111750.0,0.21976535]
[1757483914564,0.12069277,111760.0,111750.0,0.21476535]
[1757483914926,0.12069277,111760.0,111750.0,0.21676535]
[1757483915482,0.12069277,111760.0,111750.0,0.21776535]
[1757483915890,0.23623924,111760.0,111750.0,0.21776535]
[1757483916163,0.26479924,111760.0,111750.0,0.21776535]
[1757483917086,0.41479924,111760.0,111750.0,0.18197091]
[1757483918074,0.41479924,111760.0,111750.0,0.18097091]
[1757483918277,0.56795924,111760.0,111750.0,0.18097091]
[1757483920159,0.56795924,111760.0,111750.0,0.17897091]
[1757483921865,0.41479924,111760.0,111750.0,0.17897091]
[1757483922067,0.56779924,111760.0,111750.0,0.21476535]
[1757483928788,1.08675414,111760.0,111750.0,0.17897091]
[1757483929127,0.75479924,111760.0,111750.0,0.17897091]
[1757483929335,0.90747924,111760.0,111750.0,0.17897091]
[1757483929531,0.2,111750.0,111740.0,0.1789735]
[1757483929759,0.54802647,111750.0,111740.0,0.1789735]
[1757483929957,0.70066647,111750.0,111740.0,0.21566357]
[1757483930168,0.67344647,111750.0,111740.0,0.21761357]
[1757483931012,0.67344647,111750.0,111740.0,0.21861357]
[1757483931232,0.67344647,111750.0,111740.0,0.22061357]
[1757483932866,0.67332647,111750.0,111740.0,0.22061357]
[1757483934202,0.52080647,111750.0,111740.0,0.22061357]
[1757483934430,0.73107139,111750.0,111740.0,0.22061357]
[1757483935606,0.57855139,111750.0,111740.0,0.22061357]
[1757483935807,0.73103139,111750.0,111740.0,0.22061357]
[1757483936932,0.57855139,111750.0,111740.0,0.22061357]
[1757483937130,0.73095139,111750.0,111740.0,0.22061357]
[1757483937570,0.57855139,111750.0,111740.0,0.22061357]
[1757483937780,0.73091139,111750.0,111740.0,0.22061357]
[1757483938490,0.73091139,111750.0,111740.0,0.21866357]
[1757483940291,0.75813139,111750.0,111740.0,0.21866357]
[1757483940585,0.60577139,111750.0,111740.0,0.21866357]
[1757483940829,0.73079139,111750.0,111740.0,0.22061357]
[1757483941309,0.73079139,111750.0,111740.0,0.21961357]
[1757483941813,0.73079139,111750.0,111740.0,0.21761357]
[1757483942999,0.40526,111750.0,111740.0,0.21761357]
[1757483943252,0.73071139,111750.0,111740.0,0.21761357]
[1757483943481,0.7588463,111760.0,111750.0,0.17897091]
[1757483943752,0.5710063,111760.0,111750.0,0.19470245]
[1757483943991,0.74429769,111760.0,111750.0,0.19751532]
[1757483944463,0.74641769,111760.0,111750.0,0.19751532]
[1757483944712,0.74641769,111760.0,111750.0,0.19441532]
[1757483946351,0.5731263,111760.0,111750.0,0.19441532]
[1757483946566,0.74641769,111760.0,111750.0,0.19441532]
[1757483951385,0.5731263,111760.0,111750.0,0.19441532]
[1757483951597,0.74641769,111760.0,111750.0,0.19441532]
[1757483952278,0.3520463,111760.0,111750.0,0.28941131]
[1757483952474,0.3520463,111760.0,111750.0,0.4627027]
[1757483952686,0.3520463,111760.0,111750.0,0.28941131]
[1757483952895,0.3520463,111760.0,111750.0,0.4627027]
[1757483953263,0.3520463,111760.0,111750.0,0.4647027]
[1757483953748,0.3520463,111760.0,111750.0,0.4657027]
[1757483954149,0.3520463,111760.0,111750.0,0.29241131]
[1757483954349,0.3520463,111760.0,111750.0,0.4657027]
[1757483958683,1.66420136,111760.0,111750.0,0.003]
[1757483959167,2.00483024,111760.0,111750.0,0.003]
[1757483960047,2.00483024,111760.0,111750.0,0.001]
[1757483960251,2.04091659,111760.0,111750.0,0.001]
[1757483960464,0.52900295,111730.0,111720.0,0.22825773]
[1757483960683,0.85429434,111730.0,111720.0,0.22825773]
[1757483960886,0.85932434,111730.0,111720.0,0.22825773]
[1757483961609,0.68032139,111730.0,111720.0,0.22825773]
[1757483961855,0.68032139,111730.0,111720.0,0.23038773]
[1757483963359,0.68032139,111730.0,111720.0,0.23138773]
[1757483964229,1.05899573,111730.0,111720.0,0.001]
[1757483964444,0.88570434,111730.0,111720.0,0.001]
[1757483965296,0.88570434,111730.0,111720.0,0.18001897]
[1757483966224,0.88570434,111730.0,111720.0,0.18522897]
[1757483966225,0.35,111730.0,111720.0,0.18522897]
[1757483966643,0.502,111730.0,111720.0,0.35852036]
[1757483967049,0.502,111730.0,111720.0,0.4122759]
[1757483968098,0.302,111730.0,111720.0,0.4122759]
[1757483968526,0.0688,111740.0,111730.0,0.17900295]
[1757483968742,0.52329139,111750.0,111740.0,0.17898693]
[1757483968967,1.01735139,111750.0,111740.0,0.18111693]
[1757483969185,1.01735139,111750.0,111740.0,0.23476606]
[1757483969385,0.68032139,111750.0,111740.0,0.23476606]
[1757483969836,1.02032139,111750.0,111740.0,0.23476606]
[1757483970075,1.02132139,111750.0,111740.0,0.23476606]
[1757483970310,1.01835139,111750.0,111740.0,0.23476606]
[1757483970526,1.02731478,111750.0,111740.0,0.23476606]
[1757483970956,1.02631478,111750.0,111740.0,0.23476606]
[1757483973436,1.02928478,111750.0,111740.0,0.23476606]
[1757483973871,1.02928478,111750.0,111740.0,0.23576606]
[1757483975556,0.86535139,111750.0,111740.0,0.23576606]
[1757483975770,0.86535139,111750.0,111740.0,0.41213745]
[1757483975771,0.152,111750.0,111740.0,0.41213745]
[1757483975978,0.152,111750.0,111740.0,0.23884606]
[1757483976381,0.78510769,111760.0,111750.0,0.17897091]
[1757483976618,0.78510769,111760.0,111750.0,0.19857648]
[1757483976619,0.93916769,111760.0,111750.0,0.19857648]
[1757483977042,0.96554769,111760.0,111750.0,0.19857648]
[1757483977910,0.61354769,111760.0,111750.0,0.19857648]
[1757483978086,0.96554769,111760.0,111750.0,0.19857648]
[1757483978730,0.9743568,111760.0,111750.0,0.19857648]
[1757483979087,0.8223568,111760.0,111750.0,0.19857648]
[1757483979310,0.7743568,111760.0,111750.0,0.19857648]
[1757483979513,0.9743568,111760.0,111750.0,0.19857648]
[1757483981474,0.9743168,111760.0,111750.0,0.19857648]
[1757483983967,0.8223568,111760.0,111750.0,0.19857648]
[1757483984210,0.9743168,111760.0,111750.0,0.19857648]
[1757483988475,0.9743168,111760.0,111750.0,0.20065648]
[1757483988476,0.9449668,111760.0,111750.0,0.20065648]
[1757483988840,0.9482068,111760.0,111750.0,0.19857648]
[1757483989073,0.9449668,111760.0,111750.0,0.20065648]
[1757483989284,0.20885541,111760.0,111750.0,0.37696787]
[1757483989451,0.36081541,111760.0,111750.0,0.20467648]
[1757483990112,0.16081541,111760.0,111750.0,0.37796787]
[1757483990314,0.16081541,111760.0,111750.0,0.37696787]
[1757483990593,0.00885541,111760.0,111750.0,0.20367648]
[1757483990798,0.16081541,111760.0,111750.0,0.20367648]
[1757483991329,0.16292541,111760.0,111750.0,0.20467648]
[1757483991500,0.16081541,111760.0,111750.0,0.20467648]
[1757483991700,0.3341068,111760.0,111750.0,0.20767648]
[1757483991903,0.16081541,111760.0,111750.0,0.38096787]
[1757483992106,0.16081541,111760.0,111750.0,0.20767648]
[1757483992725,0.3341068,111760.0,111750.0,0.20767648]
[1757483993095,0.16081541,111760.0,111750.0,0.20767648]
[1757483993531,0.00885541,111760.0,111750.0,0.20767648]
[1757483993728,0.16165541,111760.0,111750.0,0.20767648]
[1757483993974,0.1528463,111760.0,111750.0,0.38096787]
[1757483994388,0.1528463,111760.0,111750.0,0.20767648]
[1757483994603,0.1549563,111760.0,111750.0,0.20767648]
[1757483994852,0.1528463,111760.0,111750.0,0.20767648]
[1757483995051,0.1528463,111760.0,111750.0,0.38096787]
[1757483996511,0.1528063,111760.0,111750.0,0.41507]
[1757483997334,0.1528063,111760.0,111750.0,0.29959247]
[1757483998802,0.1549163,111760.0,111750.0,0.29959247]
[1757483999896,0.1581563,111760.0,111750.0,0.29657247]
[1757484000544,0.0053963,111760.0,111750.0,0.29657247]
[1757484000757,0.1583163,111760.0,111750.0,0.29657247]
[1757484000935,0.1550763,111760.0,111750.0,0.29657247]
[1757484002390,0.1583163,111760.0,111750.0,0.29657247]
[1757484002597,0.1550763,111760.0,111750.0,0.29657247]
[1757484004527,0.1583163,111760.0,111750.0,0.29657247]
[1757484004733,0.1550763,111760.0,111750.0,0.29959247]
[1757484004936,0.1550763,111760.0,111750.0,0.29657247]
[1757484005265,0.29900383,111760.0,111750.0,0.20257648]
[1757484005679,0.1835263,111760.0,111750.0,0.20465648]
[1757484005898,0.27055383,111760.0,111750.0,0.20465648]
[1757484006256,0.27379383,111760.0,111750.0,0.20465648]
[1757484006720,0.1583163,111760.0,111750.0,0.20257648]
[1757484006983,0.27379383,111760.0,111750.0,0.20257648]
[1757484008050,0.41448136,111760.0,111750.0,0.18297091]
[1757484009331,0.59343626,111760.0,111750.0,0.004]
[1757484009502,1.00223626,111760.0,111750.0,0.004]
[1757484009700,1.00223626,111760.0,111750.0,0.18297091]
[1757484009864,0.67036136,111760.0,111750.0,0.18297091]
[1757484010066,0.82312136,111760.0,111750.0,0.22453161]
[1757484010329,0.82312136,111760.0,111750.0,0.22353161]
[1757484011012,0.82308136,111760.0,111750.0,0.22353161]
[1757484011417,0.67036136,111760.0,111750.0,0.22353161]
[1757484011744,0.82308136,111760.0,111750.0,0.22053161]
[1757484012073,0.82308136,111760.0,111750.0,0.22153161]
[1757484012271,0.79787136,111760.0,111750.0,0.22153161]
[1757484013314,0.82376136,111760.0,111750.0,0.22153161]
[1757484013518,0.52967383,111760.0,111750.0,0.22357161]
[1757484013715,0.52643383,111760.0,111750.0,0.22659161]
[1757484014038,0.67907383,111760.0,111750.0,0.22357161]
[1757484014200,0.68200383,111760.0,111750.0,0.22357161]
[1757484016801,0.68200383,111760.0,111750.0,0.22153161]
[1757484017015,0.79748136,111760.0,111750.0,0.22153161]
[1757484017221,0.70789383,111760.0,111750.0,0.22153161]
[1757484017847,0.82337136,111760.0,111750.0,0.22153161]
[1757484019824,1.00232626,111760.0,111750.0,0.22153161]
[1757484020042,1.00232626,111760.0,111750.0,0.17997091]
[1757484020505,1.00232626,111760.0,111750.0,0.001]
[1757484021620,0.69,111750.0,111740.0,0.23263606]
[1757484021833,0.83634753,111750.0,111740.0,0.23263606]
[1757484024545,0.83634753,111750.0,111740.0,0.17898693]
[1757484024546,1.01531844,111750.0,111740.0,0.17898693]
[1757484024767,1.13079597,111750.0,111740.0,0.17898693]
[1757484024987,1.33079597,111750.0,111740.0,0.17898693]
[1757484025235,1.24222376,111750.0,111740.0,0.17898693]
[1757484025898,1.24222376,111750.0,111740.0,0.17998693]
[1757484026562,1.10005532,111750.0,111740.0,0.21882093]
[1757484026804,1.21553285,111750.0,111740.0,0.21882093]
[1757484027978,1.21553285,111750.0,111740.0,0.21678093]
[1757484028427,1.21553285,111750.0,111740.0,0.21882093]
[1757484028655,1.21553285,111750.0,111740.0,0.21678093]
[1757484030546,1.10005532,111750.0,111740.0,0.21678093]
[1757484030754,1.21553285,111750.0,111740.0,0.21678093]
[1757484034342,1.21529285,111750.0,111740.0,0.21678093]
[1757484034564,1.09981532,111750.0,111740.0,0.21678093]
[1757484034782,1.21529285,111750.0,111740.0,0.21678093]
[1757484034991,1.06325285,111750.0,111740.0,0.21678093]
[1757484035180,1.21529285,111750.0,111740.0,0.21678093]
[1757484037385,1.39426376,111750.0,111740.0,0.21678093]
[1757484039876,1.21529285,111750.0,111740.0,0.21678093]
[1757484041915,1.18940285,111750.0,111740.0,0.21678093]
[1757484042440,1.18940285,111750.0,111740.0,0.21890093]
[1757484042649,1.18442285,111750.0,111740.0,0.22213093]
[1757484042862,1.06894532,111750.0,111740.0,0.22213093]
[1757484043061,1.18442285,111750.0,111740.0,0.22213093]
[1757484043278,0.91690532,111750.0,111740.0,0.22213093]
[1757484043508,0.55204,111750.0,111740.0,0.22213093]
[1757484044979,0.66751753,111750.0,111740.0,0.22213093]
[1757484045851,0.55204,111750.0,111740.0,0.22213093]
[1757484047698,0.66751753,111750.0,111740.0,0.22213093]
[1757484048114,0.55204,111750.0,111740.0,0.22213093]
[1757484048304,0.66954753,111750.0,111740.0,0.22213093]
[1757484048931,0.55407,111750.0,111740.0,0.22213093]
[1757484049169,0.66954753,111750.0,111740.0,0.21890093]
[1757484049595,0.66954753,111750.0,111740.0,0.22213093]
[1757484049596,0.66751753,111750.0,111740.0,0.22213093]
[1757484050031,0.55204,111750.0,111740.0,0.22213093]
[1757484050240,0.66751753,111750.0,111740.0,0.22213093]
[1757484050453,0.66954753,111750.0,111740.0,0.21890093]
[1757484051528,0.66751753,111750.0,111740.0,0.22213093]
[1757484052788,0.55204,111750.0,111740.0,0.22213093]
[1757484052998,0.66751753,111750.0,111740.0,0.22213093]
[1757484054297,0.51547753,111750.0,111740.0,0.22213093]
[1757484054507,0.66747753,111750.0,111740.0,0.22213093]
[1757484055176,0.67258753,111750.0,111740.0,0.21890093]
[1757484055593,0.52058753,111750.0,111740.0,0.21890093]
[1757484055803,0.66950753,111750.0,111740.0,0.22213093]
[1757484056009,0.55403,111750.0,111740.0,0.22213093]
[1757484056220,0.66950753,111750.0,111740.0,0.22213093]
[1757484056838,0.55403,111750.0,111740.0,0.22213093]
[1757484057055,0.4,111750.0,111740.0,0.22213093]
[1757484057282,0.66747753,111750.0,111740.0,0.22213093]
[1757484057947,0.66950753,111750.0,111740.0,0.22213093]
[1757484058138,0.69753753,111750.0,111740.0,0.17998693]
[1757484058614,0.75536625,111750.0,111740.0,0.17998693]
[1757484062621,0.58206,111750.0,111740.0,0.17998693]
[1757484062865,0.29575014,111760.0,111750.0,0.17897091]
[1757484063092,0.4208463,111760.0,111750.0,0.4116123]
[1757484064011,0.59926255,111760.0,111750.0,0.23507605]
[1757484064268,0.7725688,111760.0,111750.0,0.23295605]
[1757484064700,0.6205688,111760.0,111750.0,0.23295605]
[1757484064934,0.7725688,111760.0,111750.0,0.23295605]
[1757484065343,0.7975188,111760.0,111750.0,0.17897091]
[1757484066827,0.4509063,111760.0,111750.0,0.17897091]
[1757484066983,0.7975188,111760.0,111750.0,0.17897091]
[1757484068823,0.6455188,111760.0,111750.0,0.17897091]
[1757484069004,0.79747067,111760.0,111750.0,0.17897091]
[1757484069250,0.79747067,111760.0,111750.0,0.22395829]
[1757484070209,0.62416442,111760.0,111750.0,0.22395829]
[1757484071255,0.47216442,111760.0,111750.0,0.22395829]
[1757484071412,0.62416442,111760.0,111750.0,0.22395829]